[Event "Titled Tuesday Blitz September 21 2021"]
[White "Volkov, Maksim"]
[Black "Vignesh, N R"]
[WhiteFideId "54123070"]
[BlackFideId "25012215"]
[WhiteElo "2113"]
[BlackElo "2395"]
[Result "1-0"]
[Round "02"]
[TimeControl "180+1"]
[Date "2021.09.21"]
[WhiteClock "0:01:16"]
[BlackClock "0:01:16"]

1. d4 {[%clk 0:03:00]}  Nf6 {[%clk 0:02:59]} 2. c4 {[%clk 0:03:00]}  g6 {[%clk 0:02:57]} 3. g3 {[%clk 0:02:59]}  Bg7 {[%clk 0:02:56]} 4. Nf3 {[%clk 0:02:59]}  O-O {[%clk 0:02:56]} 5. Bg2 {[%clk 0:03:00]}  d6 {[%clk 0:02:57]} 6. O-O {[%clk 0:03:00]}  Nbd7 {[%clk 0:02:57]} 7. Nc3 {[%clk 0:03:00]}  e5 {[%clk 0:02:57]} 8. e4 {[%clk 0:03:00]}  c6 {[%clk 0:02:57]} 9. h3 {[%clk 0:03:00]}  Qb6 {[%clk 0:02:57]} 10. dxe5 {[%clk 0:02:35]}  Nxe5 {[%clk 0:02:45]} 11. Nxe5 {[%clk 0:02:28]}  dxe5 {[%clk 0:02:46]} 12. b3 {[%clk 0:02:27]}  Be6 {[%clk 0:02:42]} 13. Be3 {[%clk 0:02:27]}  Qa5 {[%clk 0:02:41]} 14. Qc2 {[%clk 0:02:26]}  Rfd8 {[%clk 0:02:35]} 15. Rfd1 {[%clk 0:02:26]}  Ne8 {[%clk 0:02:28]} 16. Na4 {[%clk 0:02:23]}  Bf8 {[%clk 0:02:27]} 17. Bd2 {[%clk 0:02:16]}  Bb4 {[%clk 0:02:26]} 18. Bg5 {[%clk 0:02:13]}  f6 {[%clk 0:02:24]} 19. Be3 {[%clk 0:02:13]}  Rxd1+ {[%clk 0:02:21]} 20. Rxd1 {[%clk 0:02:10]}  Be7 {[%clk 0:02:19]} 21. c5 {[%clk 0:02:07]}  Rd8 {[%clk 0:02:14]} 22. f4 {[%clk 0:02:04]}  Qc7 {[%clk 0:02:03]} 23. Kh2 {[%clk 0:01:52]}  exf4 {[%clk 0:01:56]} 24. Bxf4 {[%clk 0:01:51]}  Qc8 {[%clk 0:01:55]} 25. e5 {[%clk 0:01:48]}  fxe5 {[%clk 0:01:34]} 26. Bxe5 {[%clk 0:01:47]}  Bf6 {[%clk 0:01:35]} 27. Bf4 {[%clk 0:01:39]}  Nc7 {[%clk 0:01:32]} 28. Nc3 {[%clk 0:01:32]}  Bf7 {[%clk 0:01:28]} 29. Ne4 {[%clk 0:01:30]}  Be7 {[%clk 0:01:24]} 30. Nd6 {[%clk 0:01:29]}  Bxd6 {[%clk 0:01:23]} 31. cxd6 {[%clk 0:01:29]}  Nd5 {[%clk 0:01:22]} 32. Be5 {[%clk 0:01:22]}  Ne3 {[%clk 0:01:16]} 33. Qd2 {[%clk 0:01:20]}  Nxd1 {[%clk 0:01:16]} 34. Qh6 {[%clk 0:01:16]} 1-0


[Site "https://www.chess.com"]

[Event "Titled Tuesday Blitz September 21 2021"]
[White "Zhigalko, Sergei"]
[Black "Martinovici, Ilia"]
[WhiteFideId "13502956"]
[BlackFideId "13907034"]
[WhiteElo "2662"]
[BlackElo "2303"]
[Result "1-0"]
[Round "02"]
[TimeControl "180+1"]
[Date "2021.09.21"]
[WhiteClock "0:00:37"]
[BlackClock "0:00:12"]

1. e4 {[%clk 0:03:00]}  c5 {[%clk 0:02:59]} 2. Nf3 {[%clk 0:03:00]}  e6 {[%clk 0:02:59]} 3. c3 {[%clk 0:03:01]}  Nf6 {[%clk 0:02:55]} 4. e5 {[%clk 0:03:01]}  Nd5 {[%clk 0:02:55]} 5. Bc4 {[%clk 0:03:02]}  Nb6 {[%clk 0:02:54]} 6. Bb3 {[%clk 0:03:02]}  d6 {[%clk 0:02:51]} 7. exd6 {[%clk 0:03:02]}  Bxd6 {[%clk 0:02:51]} 8. d4 {[%clk 0:03:03]}  cxd4 {[%clk 0:02:51]} 9. cxd4 {[%clk 0:03:03]}  N8d7 {[%clk 0:02:50]} 10. O-O {[%clk 0:03:02]}  Nf6 {[%clk 0:02:50]} 11. Nc3 {[%clk 0:03:02]}  O-O {[%clk 0:02:45]} 12. Re1 {[%clk 0:03:03]}  Nbd5 {[%clk 0:02:45]} 13. Bg5 {[%clk 0:02:59]}  Be7 {[%clk 0:02:45]} 14. Ne5 {[%clk 0:02:58]}  Bd7 {[%clk 0:02:36]} 15. Nxd5 {[%clk 0:02:14]}  Nxd5 {[%clk 0:02:35]} 16. Bxd5 {[%clk 0:02:11]}  Bxg5 {[%clk 0:02:30]} 17. Bxb7 {[%clk 0:02:11]}  Rb8 {[%clk 0:02:31]} 18. Bc6 {[%clk 0:02:05]}  Bc8 {[%clk 0:02:09]} 19. b3 {[%clk 0:01:58]}  Rb4 {[%clk 0:01:59]} 20. d5 {[%clk 0:01:11]}  Bf6 {[%clk 0:00:51]} 21. Rc1 {[%clk 0:01:03]}  exd5 {[%clk 0:00:33]} 22. Bxd5 {[%clk 0:00:53]}  Bxe5 {[%clk 0:00:17]} 23. Rxe5 {[%clk 0:00:54]}  Qf6 {[%clk 0:00:15]} 24. Qe1 {[%clk 0:00:42]}  Rf4 {[%clk 0:00:12]} 25. Rxc8 {[%clk 0:00:37]} 1-0


[Site "https://www.chess.com"]

[Event "Titled Tuesday Blitz September 21 2021"]
[White "Ziatdinov, Raset"]
[Black "Ozen, Bahadir"]
[WhiteFideId "2015323"]
[BlackFideId "6337058"]
[WhiteElo "2220"]
[BlackElo "2503"]
[Result "0-1"]
[Round "02"]
[TimeControl "180+1"]
[Date "2021.09.21"]
[WhiteClock "0:01:04"]
[BlackClock "0:01:44"]

1. e4 {[%clk 0:03:00]}  c6 {[%clk 0:02:59]} 2. d4 {[%clk 0:02:59]}  d5 {[%clk 0:03:00]} 3. exd5 {[%clk 0:03:00]}  cxd5 {[%clk 0:03:00]} 4. Bd3 {[%clk 0:02:59]}  Nf6 {[%clk 0:03:00]} 5. Bf4 {[%clk 0:02:59]}  Bg4 {[%clk 0:02:55]} 6. Nf3 {[%clk 0:02:58]}  e6 {[%clk 0:02:53]} 7. O-O {[%clk 0:02:51]}  Bd6 {[%clk 0:02:51]} 8. Bxd6 {[%clk 0:02:50]}  Qxd6 {[%clk 0:02:52]} 9. h3 {[%clk 0:02:47]}  Bh5 {[%clk 0:02:50]} 10. Nbd2 {[%clk 0:02:44]}  Nc6 {[%clk 0:02:47]} 11. c3 {[%clk 0:02:41]}  O-O {[%clk 0:02:46]} 12. Re1 {[%clk 0:02:38]}  Rab8 {[%clk 0:02:41]} 13. Qc2 {[%clk 0:02:34]}  Rfc8 {[%clk 0:02:32]} 14. Qa4 {[%clk 0:02:27]}  Nd7 {[%clk 0:02:21]} 15. Qc2 {[%clk 0:01:48]}  Bg6 {[%clk 0:01:49]} 16. Bxg6 {[%clk 0:01:46]}  hxg6 {[%clk 0:01:50]} 17. Qd3 {[%clk 0:01:21]}  b5 {[%clk 0:01:50]} 18. Ne5 {[%clk 0:01:04]}  Ncxe5 {[%clk 0:01:44]} 0-1


[Site "https://www.chess.com"]

[Event "Titled Tuesday Blitz September 21 2021"]
[White "Arabidze, Meri"]
[Black "Nakamura, Hikaru"]
[WhiteFideId "13604040"]
[BlackFideId "2016192"]
[WhiteElo "2718"]
[BlackElo "3201"]
[Result "0-1"]
[Round "03"]
[TimeControl "180+1"]
[Date "2021.09.21"]
[WhiteClock "0:00:04"]
[BlackClock "0:02:08"]

1. Nf3 {[%clk 0:02:03]}  g6 {[%clk 0:02:59]} 2. g3 {[%clk 0:02:02]}  Bg7 {[%clk 0:02:59]} 3. Bg2 {[%clk 0:02:02]}  d6 {[%clk 0:03:00]} 4. O-O {[%clk 0:02:02]}  Bd7 {[%clk 0:03:01]} 5. d4 {[%clk 0:02:02]}  Qc8 {[%clk 0:03:02]} 6. c4 {[%clk 0:02:01]}  Bh3 {[%clk 0:03:03]} 7. Nc3 {[%clk 0:02:01]}  Nc6 {[%clk 0:03:03]} 8. d5 {[%clk 0:01:55]}  Ne5 {[%clk 0:03:03]} 9. Nxe5 {[%clk 0:01:54]}  Bxe5 {[%clk 0:03:03]} 10. Be3 {[%clk 0:01:51]}  h5 {[%clk 0:03:03]} 11. f3 {[%clk 0:01:31]}  Nh6 {[%clk 0:02:48]} 12. Bd4 {[%clk 0:01:28]}  Bxg2 {[%clk 0:02:47]} 13. Kxg2 {[%clk 0:01:27]}  Nf5 {[%clk 0:02:47]} 14. Qa4+ {[%clk 0:00:39]}  c6 {[%clk 0:02:34]} 15. Bxe5 {[%clk 0:00:39]}  dxe5 {[%clk 0:02:34]} 16. Nd1 {[%clk 0:00:23]}  O-O {[%clk 0:02:31]} 17. Qb3 {[%clk 0:00:16]}  Rd8 {[%clk 0:02:22]} 18. e4 {[%clk 0:00:11]}  Nd4 {[%clk 0:02:22]} 19. Qd3 {[%clk 0:00:11]}  b5 {[%clk 0:02:22]} 20. b3 {[%clk 0:00:10]}  e6 {[%clk 0:02:22]} 21. Ne3 {[%clk 0:00:10]}  Rb8 {[%clk 0:02:21]} 22. Rac1 {[%clk 0:00:09]}  bxc4 {[%clk 0:02:21]} 23. bxc4 {[%clk 0:00:09]}  Rb2+ {[%clk 0:02:16]} 24. Rf2 {[%clk 0:00:09]}  Rxf2+ {[%clk 0:02:16]} 25. Kxf2 {[%clk 0:00:10]}  cxd5 {[%clk 0:02:16]} 26. exd5 {[%clk 0:00:07]}  exd5 {[%clk 0:02:16]} 27. Rc3 {[%clk 0:00:06]}  dxc4 {[%clk 0:02:11]} 28. Rxc4 {[%clk 0:00:05]}  Qh3 {[%clk 0:02:11]} 29. Nf1 {[%clk 0:00:05]}  Qe6 {[%clk 0:02:10]} 30. Rc7 {[%clk 0:00:04]}  Qb6 {[%clk 0:02:08]} 0-1


[Site "https://www.chess.com"]

[Event "Titled Tuesday Blitz September 21 2021"]
[White "Bacrot, Etienne"]
[Black "Baskin, Robert"]
[WhiteFideId "605506"]
[BlackFideId "24662402"]
[WhiteElo "2673"]
[BlackElo "2521"]
[Result "0-1"]
[Round "03"]
[TimeControl "180+1"]
[Date "2021.09.21"]
[WhiteClock "0:00:01"]
[BlackClock "0:00:10"]

1. e4 {[%clk 0:02:47]}  c5 {[%clk 0:02:59]} 2. Nf3 {[%clk 0:02:46]}  d6 {[%clk 0:02:59]} 3. Bb5+ {[%clk 0:02:46]}  Nd7 {[%clk 0:02:59]} 4. O-O {[%clk 0:02:45]}  a6 {[%clk 0:02:59]} 5. Bd3 {[%clk 0:02:45]}  Ngf6 {[%clk 0:02:59]} 6. Re1 {[%clk 0:02:46]}  e6 {[%clk 0:02:59]} 7. c3 {[%clk 0:02:45]}  b5 {[%clk 0:02:59]} 8. Bc2 {[%clk 0:02:44]}  c4 {[%clk 0:02:59]} 9. a4 {[%clk 0:02:43]}  Bb7 {[%clk 0:02:57]} 10. d4 {[%clk 0:02:34]}  cxd3 {[%clk 0:02:58]} 11. Qxd3 {[%clk 0:02:34]}  Nc5 {[%clk 0:02:57]} 12. Qe2 {[%clk 0:02:33]}  bxa4 {[%clk 0:02:57]} 13. e5 {[%clk 0:02:33]}  dxe5 {[%clk 0:02:56]} 14. Nxe5 {[%clk 0:02:29]}  Qd5 {[%clk 0:02:55]} 15. Qf1 {[%clk 0:02:10]}  Bd6 {[%clk 0:02:52]} 16. f4 {[%clk 0:01:45]}  Nb3 {[%clk 0:02:18]} 17. c4 {[%clk 0:01:16]}  Qd4+ {[%clk 0:01:58]} 18. Be3 {[%clk 0:01:11]}  Qxb2 {[%clk 0:01:58]} 19. Bxb3 {[%clk 0:01:00]}  Qxa1 {[%clk 0:01:41]} 20. Nd2 {[%clk 0:00:55]}  Qa3 {[%clk 0:01:39]} 21. Ra1 {[%clk 0:00:47]}  axb3 {[%clk 0:01:21]} 22. Rxa3 {[%clk 0:00:46]}  Bxa3 {[%clk 0:01:21]} 23. Qa1 {[%clk 0:00:38]}  Bd6 {[%clk 0:01:08]} 24. Nxb3 {[%clk 0:00:29]}  O-O {[%clk 0:01:05]} 25. Na5 {[%clk 0:00:21]}  Be4 {[%clk 0:01:04]} 26. c5 {[%clk 0:00:21]}  Rab8 {[%clk 0:00:41]} 27. cxd6 {[%clk 0:00:14]}  Rb1+ {[%clk 0:00:40]} 28. Qxb1 {[%clk 0:00:13]}  Bxb1 {[%clk 0:00:41]} 29. Bb6 {[%clk 0:00:10]}  Nd5 {[%clk 0:00:41]} 30. Nac4 {[%clk 0:00:08]}  f6 {[%clk 0:00:34]} 31. Nc6 {[%clk 0:00:07]}  Bd3 {[%clk 0:00:30]} 32. Ne7+ {[%clk 0:00:03]}  Nxe7 {[%clk 0:00:25]} 33. dxe7 {[%clk 0:00:03]}  Re8 {[%clk 0:00:12]} 34. Nb2 {[%clk 0:00:04]}  Bb5 {[%clk 0:00:12]} 35. Bd8 {[%clk 0:00:04]}  Kf7 {[%clk 0:00:12]} 36. Kf2 {[%clk 0:00:04]}  Rxe7 {[%clk 0:00:13]} 37. Bxe7 {[%clk 0:00:04]}  Kxe7 {[%clk 0:00:14]} 38. Ke3 {[%clk 0:00:05]}  Kd6 {[%clk 0:00:14]} 39. Kd4 {[%clk 0:00:05]}  e5+ {[%clk 0:00:15]} 40. fxe5+ {[%clk 0:00:05]}  fxe5+ {[%clk 0:00:16]} 41. Kc3 {[%clk 0:00:06]}  Kc5 {[%clk 0:00:15]} 42. Nd1 {[%clk 0:00:06]}  a5 {[%clk 0:00:15]} 43. Nf2 {[%clk 0:00:05]}  Kd5 {[%clk 0:00:15]} 44. h4 {[%clk 0:00:04]}  Bf1 {[%clk 0:00:14]} 45. g3 {[%clk 0:00:04]}  a4 {[%clk 0:00:13]} 46. Ng4 {[%clk 0:00:03]}  Ba6 {[%clk 0:00:11]} 47. h5 {[%clk 0:00:03]}  h6 {[%clk 0:00:10]} 48. Nf2 {[%clk 0:00:02]}  Be2 {[%clk 0:00:10]} 49. Kd2 {[%clk 0:00:02]}  Bxh5 {[%clk 0:00:09]} 50. g4 {[%clk 0:00:01]}  Bf7 {[%clk 0:00:10]} 51. Nd1 {[%clk 0:00:01]}  Kd4 {[%clk 0:00:10]} 0-1


[Site "https://www.chess.com"]

[Event "Titled Tuesday Blitz September 21 2021"]
[White "Bazeev, German"]
[Black "Markidis, Konstantinos"]
[WhiteFideId "24119350"]
[BlackFideId "4203500"]
[WhiteElo "2462"]
[BlackElo "2304"]
[Result "1-0"]
[Round "03"]
[TimeControl "180+1"]
[Date "2021.09.21"]
[WhiteClock "0:00:05"]
[BlackClock "0:00:03"]

1. d4 {[%clk 0:03:00]}  Nf6 {[%clk 0:02:59]} 2. Nf3 {[%clk 0:02:56]}  e6 {[%clk 0:02:59]} 3. c4 {[%clk 0:02:56]}  Bb4+ {[%clk 0:02:58]} 4. Bd2 {[%clk 0:02:55]}  a5 {[%clk 0:02:57]} 5. g3 {[%clk 0:02:56]}  d5 {[%clk 0:02:56]} 6. Qc2 {[%clk 0:02:55]}  O-O {[%clk 0:02:55]} 7. Bg2 {[%clk 0:02:56]}  c6 {[%clk 0:02:52]} 8. O-O {[%clk 0:02:56]}  Be7 {[%clk 0:02:52]} 9. Bg5 {[%clk 0:02:53]}  Nbd7 {[%clk 0:02:50]} 10. Nbd2 {[%clk 0:02:53]}  h6 {[%clk 0:02:51]} 11. Bxf6 {[%clk 0:02:53]}  Nxf6 {[%clk 0:02:51]} 12. e4 {[%clk 0:02:54]}  b6 {[%clk 0:02:42]} 13. e5 {[%clk 0:02:29]}  Nd7 {[%clk 0:02:39]} 14. Rfc1 {[%clk 0:02:27]}  Ba6 {[%clk 0:02:35]} 15. cxd5 {[%clk 0:02:25]}  cxd5 {[%clk 0:02:35]} 16. Bf1 {[%clk 0:02:26]}  Bxf1 {[%clk 0:02:21]} 17. Nxf1 {[%clk 0:02:26]}  b5 {[%clk 0:01:53]} 18. Qc7 {[%clk 0:02:24]}  Nb6 {[%clk 0:01:43]} 19. Qxd8 {[%clk 0:02:17]}  Rfxd8 {[%clk 0:01:41]} 20. Rc6 {[%clk 0:02:17]}  Nc4 {[%clk 0:01:38]} 21. b3 {[%clk 0:02:17]}  Na3 {[%clk 0:01:38]} 22. Rac1 {[%clk 0:02:09]}  a4 {[%clk 0:01:21]} 23. Rc7 {[%clk 0:01:50]}  Bf8 {[%clk 0:01:20]} 24. Rb7 {[%clk 0:01:50]}  axb3 {[%clk 0:01:19]} 25. axb3 {[%clk 0:01:50]}  Rdc8 {[%clk 0:01:19]} 26. Rcc7 {[%clk 0:01:45]}  Rxc7 {[%clk 0:01:18]} 27. Rxc7 {[%clk 0:01:46]}  b4 {[%clk 0:01:09]} 28. Rb7 {[%clk 0:01:45]}  Nb1 {[%clk 0:01:09]} 29. Kg2 {[%clk 0:01:33]}  Nc3 {[%clk 0:01:08]} 30. N1d2 {[%clk 0:01:31]}  g5 {[%clk 0:01:02]} 31. g4 {[%clk 0:01:31]}  Kg7 {[%clk 0:00:59]} 32. h4 {[%clk 0:01:31]}  gxh4 {[%clk 0:00:57]} 33. Nxh4 {[%clk 0:01:29]}  Ra2 {[%clk 0:00:56]} 34. Nhf3 {[%clk 0:01:29]}  Ne4 {[%clk 0:00:56]} 35. Nxe4 {[%clk 0:00:48]}  dxe4 {[%clk 0:00:56]} 36. Ng1 {[%clk 0:00:42]}  e3 {[%clk 0:00:48]} 37. Kf1 {[%clk 0:00:42]}  Rxf2+ {[%clk 0:00:47]} 38. Ke1 {[%clk 0:00:42]}  Rb2 {[%clk 0:00:47]} 39. Nf3 {[%clk 0:00:39]}  Rxb3 {[%clk 0:00:35]} 40. Ke2 {[%clk 0:00:39]}  Rc3 {[%clk 0:00:31]} 41. d5 {[%clk 0:00:39]}  exd5 {[%clk 0:00:29]} 42. e6 {[%clk 0:00:35]}  Bd6 {[%clk 0:00:19]} 43. Nd4 {[%clk 0:00:33]}  Kf6 {[%clk 0:00:15]} 44. exf7 {[%clk 0:00:29]}  Rc4 {[%clk 0:00:12]} 45. Nf5 {[%clk 0:00:16]}  Bf8 {[%clk 0:00:12]} 46. Nxe3 {[%clk 0:00:15]}  Re4 {[%clk 0:00:11]} 47. Kd3 {[%clk 0:00:14]}  Re5 {[%clk 0:00:12]} 48. Nc2 {[%clk 0:00:07]}  Re7 {[%clk 0:00:11]} 49. Rb6+ {[%clk 0:00:07]}  Kxf7 {[%clk 0:00:11]} 50. Nd4 {[%clk 0:00:08]}  Re4 {[%clk 0:00:10]} 51. Rb7+ {[%clk 0:00:06]}  Kg6 {[%clk 0:00:10]} 52. Rb6+ {[%clk 0:00:05]}  Kg5 {[%clk 0:00:10]} 53. Ne6+ {[%clk 0:00:06]}  Kxg4 {[%clk 0:00:10]} 54. Nxf8 {[%clk 0:00:06]}  h5 {[%clk 0:00:09]} 55. Nh7 {[%clk 0:00:07]}  Rf4 {[%clk 0:00:08]} 56. Nf6+ {[%clk 0:00:07]}  Kg5 {[%clk 0:00:08]} 57. Nxd5 {[%clk 0:00:07]}  Rf5 {[%clk 0:00:08]} 58. Ne3 {[%clk 0:00:08]}  Rf3 {[%clk 0:00:06]} 59. Rb5+ {[%clk 0:00:08]}  Kf4 {[%clk 0:00:05]} 60. Rxb4+ {[%clk 0:00:09]}  Kg3 {[%clk 0:00:04]} 61. Rb8 {[%clk 0:00:06]}  Kf2 {[%clk 0:00:02]} 62. Rb2+ {[%clk 0:00:06]}  Kg3 {[%clk 0:00:02]} 63. Ke4 {[%clk 0:00:04]}  h4 {[%clk 0:00:01]} 64. Nf5+ {[%clk 0:00:04]}  Kg4 {[%clk 0:00:01]} 65. Rg2+ {[%clk 0:00:04]}  Rg3 {[%clk 0:00:01]} 66. Nxg3 {[%clk 0:00:03]}  hxg3 {[%clk 0:00:02]} 67. Ke3 {[%clk 0:00:04]}  Kh3 {[%clk 0:00:02]} 68. Kf3 {[%clk 0:00:05]}  Kh4 {[%clk 0:00:03]} 69. Rxg3 {[%clk 0:00:05]} 1-0


[Site "https://www.chess.com"]

[Event "Titled Tuesday Blitz September 21 2021"]
[White "Bouget, Alexandre"]
[Black "Sargsyan, Anna M."]
[WhiteFideId "681318"]
[BlackFideId "13308130"]
[WhiteElo "2178"]
[BlackElo "2263"]
[Result "0-1"]
[Round "03"]
[TimeControl "180+1"]
[Date "2021.09.21"]
[WhiteClock "0:00:01"]
[BlackClock "0:01:20"]

1. d4 {[%clk 0:03:00]}  d5 {[%clk 0:02:59]} 2. c4 {[%clk 0:03:00]}  c6 {[%clk 0:03:00]} 3. Nc3 {[%clk 0:03:00]}  Nf6 {[%clk 0:03:01]} 4. Nf3 {[%clk 0:03:00]}  dxc4 {[%clk 0:02:59]} 5. e3 {[%clk 0:02:56]}  Bf5 {[%clk 0:02:57]} 6. Bxc4 {[%clk 0:02:55]}  e6 {[%clk 0:02:55]} 7. O-O {[%clk 0:02:54]}  Be7 {[%clk 0:02:49]} 8. Qe2 {[%clk 0:02:53]}  O-O {[%clk 0:02:49]} 9. e4 {[%clk 0:02:51]}  Bg4 {[%clk 0:02:49]} 10. Be3 {[%clk 0:02:46]}  Nbd7 {[%clk 0:02:47]} 11. Rad1 {[%clk 0:02:45]}  Re8 {[%clk 0:02:47]} 12. h3 {[%clk 0:02:44]}  Bh5 {[%clk 0:02:47]} 13. Qc2 {[%clk 0:02:01]}  Qc7 {[%clk 0:02:42]} 14. e5 {[%clk 0:01:46]}  Nd5 {[%clk 0:02:41]} 15. a3 {[%clk 0:01:03]}  Nf8 {[%clk 0:02:37]} 16. Rc1 {[%clk 0:00:59]}  Rad8 {[%clk 0:02:27]} 17. Nd2 {[%clk 0:00:41]}  Nxe3 {[%clk 0:02:22]} 18. fxe3 {[%clk 0:00:40]}  c5 {[%clk 0:02:23]} 19. Qe4 {[%clk 0:00:34]}  cxd4 {[%clk 0:02:20]} 20. Nb5 {[%clk 0:00:29]}  Qb6 {[%clk 0:02:18]} 21. exd4 {[%clk 0:00:23]}  a6 {[%clk 0:02:16]} 22. Nd6 {[%clk 0:00:23]}  Bxd6 {[%clk 0:02:15]} 23. exd6 {[%clk 0:00:24]}  Rxd6 {[%clk 0:02:14]} 24. Nf3 {[%clk 0:00:14]}  Qxb2 {[%clk 0:02:02]} 25. Kh1 {[%clk 0:00:11]}  Red8 {[%clk 0:01:59]} 26. Rb1 {[%clk 0:00:10]}  Qxa3 {[%clk 0:01:59]} 27. Rxb7 {[%clk 0:00:10]}  Bg6 {[%clk 0:01:58]} 28. Qf4 {[%clk 0:00:09]}  Qc3 {[%clk 0:01:47]} 29. Ne5 {[%clk 0:00:09]}  Rxd4 {[%clk 0:01:42]} 30. Qf2 {[%clk 0:00:03]}  Rd2 {[%clk 0:01:31]} 31. Qf4 {[%clk 0:00:02]}  R2d4 {[%clk 0:01:20]} 32. Qf2 {[%clk 0:00:01]}  f6 {[%clk 0:01:20]} 0-1


[Site "https://www.chess.com"]

[Event "Titled Tuesday Blitz September 21 2021"]
[White "Buscar, Michael"]
[Black "Williams, Simon K"]
[WhiteFideId "2603616"]
[BlackFideId "404454"]
[WhiteElo "2010"]
[BlackElo "2468"]
[Result "1-0"]
[Round "03"]
[TimeControl "180+1"]
[Date "2021.09.21"]
[WhiteClock "0:00:06"]
[BlackClock "0:00:04"]

1. d4 {[%clk 0:02:59]}  e6 {[%clk 0:02:59]} 2. c4 {[%clk 0:02:59]}  b6 {[%clk 0:02:59]} 3. Nf3 {[%clk 0:02:56]}  Bb7 {[%clk 0:02:58]} 4. e3 {[%clk 0:02:55]}  f5 {[%clk 0:02:56]} 5. Nc3 {[%clk 0:02:54]}  Nf6 {[%clk 0:02:56]} 6. Be2 {[%clk 0:02:52]}  Bb4 {[%clk 0:02:56]} 7. O-O {[%clk 0:02:44]}  O-O {[%clk 0:02:55]} 8. a3 {[%clk 0:02:39]}  Bxc3 {[%clk 0:02:55]} 9. bxc3 {[%clk 0:02:39]}  Ne4 {[%clk 0:02:55]} 10. Qc2 {[%clk 0:02:37]}  Rf6 {[%clk 0:02:54]} 11. Ne5 {[%clk 0:02:32]}  d6 {[%clk 0:02:46]} 12. Nd3 {[%clk 0:02:28]}  Rh6 {[%clk 0:02:31]} 13. Bf3 {[%clk 0:02:06]}  Qh4 {[%clk 0:02:26]} 14. h3 {[%clk 0:01:58]}  Nd7 {[%clk 0:01:20]} 15. c5 {[%clk 0:01:20]}  Rf8 {[%clk 0:01:06]} 16. cxd6 {[%clk 0:01:07]}  cxd6 {[%clk 0:01:05]} 17. a4 {[%clk 0:01:07]}  Rff6 {[%clk 0:01:05]} 18. Nf4 {[%clk 0:00:50]}  g5 {[%clk 0:01:03]} 19. g3 {[%clk 0:00:45]}  Nxg3 {[%clk 0:01:02]} 20. fxg3 {[%clk 0:00:46]}  Qxg3+ {[%clk 0:01:02]} 21. Qg2 {[%clk 0:00:46]}  Qxg2+ {[%clk 0:00:33]} 22. Nxg2 {[%clk 0:00:47]}  Ba6 {[%clk 0:00:29]} 23. Rf2 {[%clk 0:00:37]}  Rxh3 {[%clk 0:00:28]} 24. Bc6 {[%clk 0:00:27]}  Nf8 {[%clk 0:00:26]} 25. a5 {[%clk 0:00:26]}  Rfh6 {[%clk 0:00:25]} 26. Ne1 {[%clk 0:00:20]}  d5 {[%clk 0:00:17]} 27. Nf3 {[%clk 0:00:10]}  Rh1+ {[%clk 0:00:16]} 28. Kg2 {[%clk 0:00:11]}  g4 {[%clk 0:00:14]} 29. Ng5 {[%clk 0:00:09]}  R6h2+ {[%clk 0:00:11]} 30. Kg3 {[%clk 0:00:09]}  h6 {[%clk 0:00:11]} 31. Rxh2 {[%clk 0:00:08]}  Rg1+ {[%clk 0:00:08]} 32. Rg2 {[%clk 0:00:09]}  Rh1 {[%clk 0:00:05]} 33. axb6 {[%clk 0:00:09]}  hxg5 {[%clk 0:00:04]} 34. Rxa6 {[%clk 0:00:08]}  axb6 {[%clk 0:00:04]} 35. Rxb6 {[%clk 0:00:08]}  Rxc1 {[%clk 0:00:04]} 36. Rb8 {[%clk 0:00:08]}  Kf7 {[%clk 0:00:04]} 37. Bb5 {[%clk 0:00:07]}  Ng6 {[%clk 0:00:04]} 38. c4 {[%clk 0:00:06]}  Rc3 {[%clk 0:00:04]} 39. Re2 {[%clk 0:00:06]}  dxc4 {[%clk 0:00:04]} 40. Rc8 {[%clk 0:00:06]}  Kf6 {[%clk 0:00:04]} 41. Rxc4 {[%clk 0:00:06]}  Rb3 {[%clk 0:00:04]} 42. Bd7 {[%clk 0:00:06]}  Rb6 {[%clk 0:00:04]} 43. Rc6 {[%clk 0:00:06]}  Rxc6 {[%clk 0:00:04]} 44. Bxc6 {[%clk 0:00:06]}  Nh4 {[%clk 0:00:05]} 45. d5 {[%clk 0:00:06]}  exd5 {[%clk 0:00:05]} 46. Bxd5 {[%clk 0:00:07]}  Ke5 {[%clk 0:00:05]} 47. Bc4 {[%clk 0:00:06]}  Ng6 {[%clk 0:00:05]} 48. Bd3 {[%clk 0:00:06]}  Kf6 {[%clk 0:00:05]} 49. Rf2 {[%clk 0:00:07]}  Ne7 {[%clk 0:00:05]} 50. Bxf5 {[%clk 0:00:07]}  Nxf5+ {[%clk 0:00:04]} 51. Kxg4 {[%clk 0:00:06]} 1-0


[Site "https://www.chess.com"]